fUST/lending_fUST_20260409
["ID","MTS","AMOUNT","RATE_DAILY","PERIOD"]
[420142445,1775717439823,-500.0,0.00018994,2]
[420142446,1775717439834,-500.0,0.00018994,2]
[420142447,1775717439844,-500.0,0.00018994,2]
[420142448,1775717439856,-500.0,0.00018994,2]
[420142449,1775717439867,-500.0,0.00018994,2]
[420142450,1775717439878,-621.85201066,0.00018994,2]
[420142451,1775717439888,-44369.15627433,0.00018995,2]
[420142452,1775717439899,-151.0,0.00018995,2]
[420142453,1775717439910,-151.0,0.00018995,2]
[420142454,1775717439922,-151.0,0.00018995,2]
[420142455,1775717439935,-235.0,0.00019036,2]
[420142456,1775717439946,-820.96293363,0.0001907,2]
[420142457,1775717439957,-647.0,0.00019089,2]
[420142458,1775717439968,-647.0,0.00019089,2]
[420142459,1775717439979,-647.0,0.00019089,2]
[420142460,1775717439991,-647.0,0.00019089,2]
[420142461,1775717440001,-647.0,0.00019089,2]
[420142462,1775717440013,-647.0,0.00019089,2]
[420142463,1775717440024,-647.0,0.00019089,2]
[420142464,1775717440035,-647.0,0.00019089,2]
[420142465,1775717440046,-647.0,0.00019089,2]
[420142466,1775717440058,-728.83558434,0.00019089,2]
[420142467,1775717440068,-340.0,0.00019089,2]
[420142468,1775717440079,-340.0,0.00019089,2]
[420142469,1775717440090,-340.0,0.00019089,2]
[420142470,1775717440101,-340.0,0.00019089,2]
[420142471,1775717440112,-340.0,0.00019089,2]
[420142472,1775717440122,-808.69,0.00019117,3]
[420142473,1775717440133,-235.0,0.0001912,2]
[420142474,1775717440144,-678.30938848,0.00019122,2]
[420142475,1775717440155,-2713.23755392,0.00019122,2]
[420142476,1775717440166,-389.43313319,0.00019122,2]
[420142477,1775717440177,-1557.73253275,0.00019122,2]
[420142478,1775717440188,-36915.8721188,0.00019124,2]
[420142479,1775717440199,-3322.7503047,0.00019124,2]
[420142480,1775717440209,-8385.0213733,0.00019124,2]
[420142481,1775717440221,-314.5827419,0.00019124,2]
[420142482,1775717440232,-151.0,0.00019124,2]
[420142483,1775717440243,-151.0,0.00019124,2]
[420142484,1775717440255,-193.49315888,0.00019124,2]
[420142486,1775717440266,-500.0,0.00019126,2]
[420142487,1775717440277,-500.0,0.00019126,2]
[420142488,1775717440288,-500.0,0.00019126,2]
[420142489,1775717440298,-500.0,0.00019126,2]
[420142490,1775717440308,-500.0,0.00019126,2]
[420142491,1775717440319,-500.0,0.00019126,2]
[420142492,1775717440329,-500.0,0.00019126,2]
[420142493,1775717440339,-943.59,0.00019126,2]
[420142494,1775717440350,-943.59,0.00019126,2]
[420142495,1775717440360,-943.59,0.00019126,2]
[420142496,1775717440370,-151.0,0.00019127,2]
[420142497,1775717440381,-215.332618,0.00019127,2]
[420142498,1775717440392,-215.332618,0.00019127,2]
[420142499,1775717440402,-215.332618,0.00019127,2]
[420142500,1775717440412,-215.332618,0.00019127,2]
[420142501,1775717440423,-340.0,0.00019127,2]
[420142502,1775717440434,-340.0,0.00019127,2]
[420142503,1775717440444,-340.0,0.00019127,2]
[420142504,1775717440455,-340.0,0.00019127,2]
[420142505,1775717440465,-340.0,0.00019127,2]
[420142506,1775717440475,-340.0,0.00019127,2]
[420142507,1775717440485,-340.0,0.00019127,2]
[420142508,1775717440496,-340.0,0.00019127,2]
[420142509,1775717440506,-340.0,0.00019127,2]
[420142510,1775717440518,-151.0,0.00019127,2]
[420142511,1775717440528,-340.0,0.00019127,2]
[420142512,1775717440539,-340.0,0.00019127,2]
[420142513,1775717440550,-340.0,0.00019127,2]
[420142514,1775717440561,-340.0,0.00019127,2]
[420142515,1775717440571,-340.0,0.00019127,2]
[420142516,1775717440581,-340.0,0.00019127,2]
[420142517,1775717440591,-340.0,0.00019127,2]
[420142518,1775717440602,-340.0,0.00019127,2]
[420142519,1775717440612,-340.0,0.00019127,2]
[420142520,1775717440622,-340.0,0.00019127,2]
[420142521,1775717440633,-340.0,0.00019127,2]
[420142522,1775717440643,-340.0,0.00019127,2]
[420142523,1775717440654,-340.0,0.00019127,2]
[420142524,1775717440664,-340.0,0.00019127,2]
[420142525,1775717440674,-340.0,0.00019127,2]
[420142526,1775717440684,-340.0,0.00019127,2]
[420142527,1775717440695,-340.0,0.00019127,2]
[420142528,1775717440705,-340.0,0.00019127,2]
[420142529,1775717440716,-340.0,0.00019127,2]
[420142530,1775717440726,-340.0,0.00019127,2]
[420142531,1775717440737,-340.0,0.00019127,2]
[420142532,1775717440747,-340.0,0.00019127,2]
[420142533,1775717440758,-340.0,0.00019127,2]
[420142534,1775717440769,-340.0,0.00019127,2]
[420142535,1775717440778,-340.0,0.00019127,2]
[420142536,1775717440789,-340.0,0.00019127,2]
[420142537,1775717440800,-340.0,0.00019127,2]
[420142538,1775717440811,-340.0,0.00019127,2]
[420142539,1775717440821,-340.0,0.00019127,2]
[420142540,1775717440831,-340.0,0.00019127,2]
[420142541,1775717440842,-340.0,0.00019127,2]
[420142542,1775717440853,-340.0,0.00019127,2]
[420142543,1775717440863,-340.0,0.00019127,2]
[420142544,1775717440874,-340.0,0.00019127,2]
[420142545,1775717440884,-340.0,0.00019127,2]
[420142546,1775717440895,-340.0,0.00019127,2]
[420142547,1775717440905,-340.0,0.00019127,2]
[420142548,1775717440916,-340.0,0.00019127,2]
[420142549,1775717440926,-340.0,0.00019127,2]
[420142550,1775717440938,-340.0,0.00019127,2]
[420142551,1775717440949,-340.0,0.00019127,2]
[420142552,1775717440959,-340.0,0.00019127,2]
[420142553,1775717440970,-340.0,0.00019127,2]
[420142554,1775717440981,-340.0,0.00019127,2]
[420142555,1775717440991,-340.0,0.00019127,2]
[420142556,1775717441002,-340.0,0.00019127,2]
[420142557,1775717441013,-340.0,0.00019127,2]
[420142558,1775717441023,-340.0,0.00019127,2]
[420142559,1775717441034,-340.0,0.00019127,2]
[420142560,1775717441046,-340.0,0.00019127,2]
[420142561,1775717441057,-355.65561852,0.00019127,2]
[420142562,1775717441067,-179.0,0.00019127,2]
[420142563,1775717441078,-179.0,0.00019127,2]
[420142564,1775717441089,-180.02912679,0.00019127,2]
[420142565,1775717441100,-300.67367439,0.00019127,2]
[420142566,1775717441111,-151.0,0.00019127,2]
[420142567,1775717441121,-205.7032219,0.00019127,2]
[420142568,1775717441132,-155.0,0.00019127,2]
[420142569,1775717441142,-155.0,0.00019127,2]
[420142570,1775717441153,-155.0,0.00019127,2]
[420142571,1775717441164,-155.0,0.00019127,2]
[420142572,1775717441174,-340.0,0.00019127,2]
[420142573,1775717441185,-340.0,0.00019127,2]
[420142574,1775717441195,-340.0,0.00019127,2]
[420142575,1775717441205,-340.0,0.00019127,2]
[420142576,1775717441216,-340.0,0.00019127,2]
[420142577,1775717441226,-340.0,0.00019127,2]
[420142578,1775717441237,-453.21778722,0.00019127,2]
[420142579,1775717441684,-235.0,0.00019145,2]
[420142580,1775717441713,-235.0,0.00019151,2]
[420142581,1775717441730,-235.0,0.00019167,2]
[420142582,1775717441740,-500.0,0.00019177,2]
[420142583,1775717441750,-500.0,0.00019177,2]
[420142584,1775717441760,-500.0,0.00019177,2]
[420142585,1775717441769,-943.59,0.00019177,2]
[420142586,1775717441779,-216.37,0.00019178,2]
[420142587,1775717441788,-200.0,0.00019178,2]
[420142588,1775717441798,-324.57,0.00019178,2]
[420142589,1775717441807,-200.0,0.00019178,2]
[420142590,1775717441817,-1313.808095,0.00019178,2]
[420142591,1775717441826,-1313.808095,0.00019178,2]
[420142592,1775717441836,-1313.808095,0.00019178,2]
[420142593,1775717441845,-1313.808095,0.00019178,2]
[420142594,1775717441855,-1313.808095,0.00019178,2]
[420142595,1775717441865,-1313.808095,0.00019178,2]
[420142596,1775717441874,-1313.808095,0.00019178,2]
[420142597,1775717441883,-1313.808095,0.00019178,2]
[420142598,1775717441892,-1313.808095,0.00019178,2]
[420142599,1775717441902,-1313.808095,0.00019178,2]
[420142600,1775717441911,-1313.808095,0.00019178,2]
[420142601,1775717441920,-1313.808095,0.00019178,2]
[420142602,1775717441929,-2012.084108,0.00019178,2]
[420142603,1775717441939,-2012.084108,0.00019178,2]
[420142604,1775717441949,-2012.084108,0.00019178,2]
[420142605,1775717441959,-2012.084108,0.00019178,2]
[420142606,1775717441968,-2012.084108,0.00019178,2]
[420142607,1775717441977,-2012.084108,0.00019178,2]
[420142608,1775717441987,-2012.084108,0.00019178,2]
[420142609,1775717441996,-2012.084108,0.00019178,2]
[420142610,1775717442006,-2012.084108,0.00019178,2]
[420142611,1775717442016,-2012.084108,0.00019178,2]
[420142612,1775717442026,-2012.084108,0.00019178,2]
[420142613,1775717442035,-2012.084108,0.00019178,2]
[420142614,1775717442044,-2012.084108,0.00019178,2]
[420142615,1775717442054,-2012.084108,0.00019178,2]
[420142616,1775717442063,-2012.084108,0.00019178,2]
[420142617,1775717442073,-2012.084108,0.00019178,2]
[420142618,1775717442082,-235.0,0.00019182,2]
[420142619,1775717442092,-1613.0,0.00019196,2]
[420142620,1775717442101,-793.0,0.000192,2]
[420142621,1775717442111,-558.74,0.00019203,2]
[420142622,1775717442120,-500.0,0.0001922,2]
[420142623,1775717442130,-943.59,0.0001922,2]
[420142624,1775717442139,-500.0,0.00019241,2]
[420142625,1775717442149,-235.0,0.0001925,2]
[420142626,1775717442159,-151.0,0.0001927,2]
[420142627,1775717442169,-174.61919141,0.0001927,2]
[420142628,1775717442179,-578.20924308,0.0001927,2]
[420142629,1775717442188,-506.94657237,0.0001927,2]
[420142630,1775717442198,-2312.83697232,0.0001927,2]
[420142631,1775717442208,-1900.0,0.00019279,5]
[420142632,1775717442217,-11552.0,0.00019279,5]
[420142633,1775717442227,-151.0,0.00019279,2]
[420142634,1775717442236,-1313.808095,0.00019279,2]
[420142635,1775717442246,-1313.808095,0.00019279,2]
[420142636,1775717442256,-1313.808095,0.00019279,2]
[420142637,1775717442265,-1313.808095,0.00019279,2]
[420142638,1775717442275,-151.0,0.00019279,2]
[420142639,1775717442284,-2012.084108,0.00019279,2]
[420142640,1775717442294,-2012.084108,0.00019279,2]
[420142641,1775717442304,-2012.084108,0.00019279,2]
[420142642,1775717442314,-2012.084109,0.00019279,2]
[420142643,1775717442324,-16169.30888351,0.000193,2]
[420142644,1775717442333,-16169.30888349,0.000193,2]
[420142645,1775717442342,-235.0,0.0001932,2]
[420142646,1775717442352,-235.0,0.00019364,2]
[420142647,1775717442362,-500.0,0.00019394,2]
[420142648,1775717442371,-500.0,0.00019394,2]
[420142649,1775717442381,-500.0,0.00019465,2]
[420142650,1775717442391,-500.0,0.00019465,2]
[420142651,1775717442400,-500.0,0.00019465,2]
[420142652,1775717442409,-235.0,0.00019498,2]
[420142653,1775717442419,-500.0,0.00019499,2]
[420142654,1775717442428,-943.59,0.00019499,2]
[420142655,1775717442438,-1000.0,0.000195,2]
[420142656,1775717442447,-1313.808095,0.000195,2]
[420142657,1775717442456,-1313.808095,0.000195,2]
[420142658,1775717442466,-1313.808095,0.000195,2]
[420142659,1775717442475,-1313.808102,0.000195,2]
[420142660,1775717442485,-151.0,0.000195,2]
[420142661,1775717442494,-820.96293363,0.00019508,2]
[420142662,1775717442504,-162.380719,0.00019543,2]
[420142663,1775717442514,-16169.30888349,0.00019579,2]
[420142664,1775717442524,-500.0,0.00019608,2]
[420142665,1775717442533,-943.59,0.00019608,2]
[420142666,1775717442543,-151.0,0.00019609,2]
[420142667,1775717442552,-215.332618,0.00019609,2]
[420142668,1775717442562,-215.332618,0.00019609,2]
[420142669,1775717442571,-215.332618,0.00019609,2]
[420142670,1775717442581,-215.332618,0.00019609,2]
[420142671,1775717442591,-180.0774333,0.00019633,2]
[420142672,1775717442600,-178.135297,0.00019635,2]
[420142673,1775717442609,-193.94,0.00019678,7]
[420142674,1775717442619,-235.0,0.00019734,2]
[420142675,1775717442629,-235.0,0.0001974,2]
[420142676,1775717442638,-1000.0,0.00019789,2]
[420142677,1775717442648,-151.0,0.00019818,2]
[420142678,1775717442659,-307.59604077,0.00019818,2]
[420142679,1775717442668,-683.70678059,0.00019818,2]
[420142680,1775717442678,-2398.4119403,0.00019818,2]
[420142681,1775717442688,-1334.598004,0.0001986,7]
[420142682,1775717442697,-600.0,0.00019882,2]
[420142683,1775717442706,-16169.30888349,0.000199,2]
[420142684,1775717442716,-235.0,0.00019923,2]
[420142685,1775717442726,-235.0,0.0001994,2]
[420142686,1775717442736,-1000.0,0.00019942,2]
[420142687,1775717442747,-1000.0,0.00019942,2]
[420142688,1775717442756,-500.0,0.00019973,2]
[420142689,1775717442766,-943.59,0.00019973,2]
[420142690,1775717442775,-500.0,0.00019999,2]
[420142691,1775717442784,-500.0,0.00019999,2]
[420142692,1775717442794,-564.23015566,0.00019999,2]
[420142693,1775717442804,-943.59,0.00019999,2]
[420142694,1775717442813,-943.59,0.00019999,2]
[420142695,1775717442823,-943.59,0.00019999,2]
[420142696,1775717442832,-7000.0,0.0002,2]
[420142697,1775717442841,-14512.41555307,0.0002,2]
[420142698,1775717442852,-23000.0,0.0002,2]
[420142701,1775717442862,-1006.0,0.0002,6]
[420142704,1775717442871,-442.69595533,0.0002,2]
[420142706,1775717442880,-151.0,0.0002,2]
[420142708,1775717442889,-151.0,0.0002,2]
[420142710,1775717442899,-151.0,0.0002,2]
[420142711,1775717442909,-250.78233,0.0002,2]
[420142712,1775717442918,-151.0,0.0002,2]
[420142713,1775717442928,-151.0,0.0002,2]
[420142714,1775717442937,-151.0,0.0002,2]
[420142715,1775717442947,-151.0,0.0002,2]
[420142716,1775717442957,-215.332618,0.0002,2]
[420142717,1775717442966,-215.332618,0.0002,2]
[420142718,1775717442975,-794.81,0.0002,2]
[420142719,1775717442985,-215.332618,0.0002,2]
[420142720,1775717442994,-215.332618,0.0002,2]
[420142721,1775717443004,-215.332618,0.0002,2]
[420142722,1775717443013,-215.332618,0.0002,2]
[420142723,1775717443023,-215.332618,0.0002,2]
[420142724,1775717443033,-215.332618,0.0002,2]
[420142725,1775717443043,-600.0,0.0002,2]
[420142726,1775717443054,-2760.11,0.0002,2]
[420142727,1775717443064,-2497.59,0.0002,2]
[420142728,1775717443075,-1328.97,0.0002,2]
[420142729,1775717443085,-171.6027577,0.0002,2]
[420142730,1775717443095,-700.0,0.0002,2]
[420142731,1775717443106,-1200.0,0.0002,2]
[420142732,1775717443116,-1400.0,0.0002,2]
[420142733,1775717443127,-1358.76,0.0002,2]
[420142735,1775717443137,-1100.0,0.0002,2]
[420142737,1775717443146,-1000.0,0.0002,2]
[420142738,1775717443156,-185.12,0.0002,2]
[420142740,1775717443166,-898.88,0.0002,2]
[420142742,1775717443177,-1695.0,0.0002,2]
[420142745,1775717443187,-1000.0,0.00020012,2]
[420142747,1775717443197,-1000.0,0.00020012,2]
[420142749,1775717443207,-1000.0,0.00020012,2]
[420142750,1775717443217,-235.0,0.00020054,2]
[420142751,1775717443227,-235.0,0.0002006,2]
[420142752,1775717443237,-3170.0,0.00020106,2]
[420142753,1775717443247,-943.59,0.00020118,2]
[420142754,1775717443257,-6098.67971182,0.00020132,2]
[420142755,1775717443266,-1200.0,0.00020163,2]
[420142756,1775717443276,-235.0,0.00020166,2]
[420142757,1775717443286,-943.59,0.00020196,2]
[420142758,1775717443296,-943.59,0.00020196,2]
[420142759,1775717443306,-943.59,0.00020196,2]
[420142760,1775717443316,-943.59,0.00020196,2]
[420142761,1775717443327,-943.59,0.00020196,2]
[420142762,1775717443336,-943.59,0.00020196,2]
[420142763,1775717443346,-943.59,0.00020196,2]
[420142764,1775717443356,-943.64947091,0.00020196,2]
[420142765,1775717443367,-275883.12672734,0.00020197,2]
[420142766,1775717443378,-151.0,0.00020197,2]
[420142767,1775717443388,-151.784139,0.00020197,2]
[420142768,1775717443398,-215.332618,0.00020197,2]
[420142769,1775717443407,-215.332618,0.00020197,2]
[420142770,1775717443417,-215.332618,0.00020197,2]
[420142771,1775717443427,-215.332623,0.00020197,2]
[420142773,1775717443438,-764.69,0.00020197,2]
[420142775,1775717443448,-764.69,0.00020197,2]
[420142776,1775717443458,-764.69,0.00020197,2]
[420142777,1775717443468,-764.69,0.00020197,2]
[420142778,1775717443478,-764.69,0.00020197,2]
[420142779,1775717443488,-764.69,0.00020197,2]
[420142780,1775717443498,-764.69,0.00020197,2]
[420142781,1775717443508,-764.69,0.00020197,2]
[420142782,1775717443518,-764.69,0.00020197,2]
[420142783,1775717443528,-764.69,0.00020197,2]
[420142784,1775717443538,-764.69,0.00020197,2]
[420142785,1775717443547,-764.69,0.00020197,2]
[420142786,1775717443557,-764.69,0.00020197,2]
[420142787,1775717443566,-764.69,0.00020197,2]
[420142788,1775717443576,-764.69,0.00020197,2]
[420142789,1775717443586,-764.69,0.00020197,2]
[420142790,1775717443596,-962.68,0.00020197,2]
[420142791,1775717443606,-2257.443,0.00020201,2]
[420142792,1775717443616,-1435.774,0.00020201,2]
[420142793,1775717443625,-368.0,0.00020201,2]
[420142794,1775717443635,-184.0,0.00020201,2]
[420142795,1775717443644,-151.664,0.00020201,2]
[420142796,1775717443653,-1290.0,0.00020202,2]
[420142797,1775717443663,-1400.0,0.0002023,2]
[420142798,1775717443672,-235.0,0.00020232,2]
[420142799,1775717443683,-235.0,0.0002029,2]
[420142800,1775717443692,-235.0,0.00020303,2]
[420142801,1775717443702,-1500.0,0.00020337,2]
[420142802,1775717443711,-2487.15318209,0.00020366,2]
[420142803,1775717443721,-3501.39330049,0.00020371,2]
[420142804,1775717443731,-235.0,0.00020374,2]
[420142805,1775717443741,-235.0,0.00020389,2]
[420142806,1775717443751,-235.0,0.00020428,2]
[420142807,1775717443761,-1095.53499464,0.0002049,2]
[420142808,1775717443771,-1000.0,0.0002049,2]
[420142809,1775717443780,-1320.0,0.00020517,2]
[420142810,1775717443790,-1500.0,0.0002056,2]
[420142811,1775717443800,-1500.0,0.0002056,2]
[420142812,1775717443810,-1402.50050213,0.0002061,2]
[420142813,1775717443820,-213.62,0.00020645,7]
[420142814,1775717443830,-2300.0,0.00020668,2]
[420142815,1775717443840,-1700.0,0.00020677,2]
[420142816,1775717443850,-500.0,0.00020737,2]
[420142817,1775717443860,-235.0,0.00020803,2]
[420142818,1775717443870,-3800.0,0.00020808,2]
[420142819,1775717443880,-500.0,0.00020854,2]
[420142820,1775717443890,-2000.0,0.00020884,2]
[420142821,1775717443900,-151.0,0.00020897,2]
[420142822,1775717443910,-258.94154263,0.000209,2]
[420142823,1775717443920,-297.0,0.000209,2]
[420142824,1775717443930,-298.0,0.000209,2]
[420142825,1775717443940,-275.0,0.000209,2]
[420142826,1775717443950,-640.0,0.000209,2]
[420142827,1775717443960,-152.0,0.000209,2]
[420142828,1775717443970,-168.3888056,0.00020912,2]
[420142829,1775717443980,-2579.17784983,0.00020914,2]
[420142830,1775717443989,-3273.724598,0.00021,2]
[420142831,1775717443999,-280.0885194,0.00021,2]
[420142832,1775717444009,-1000.0,0.00021,2]
[420142833,1775717444019,-50000.0,0.00021,2]
[420142834,1775717444029,-151.0,0.00021,2]
[420142835,1775717444039,-2258.0,0.00021072,2]
[420142836,1775717444049,-30555.48696328,0.000211,2]
[420142837,1775717444059,-523.51012636,0.000211,2]
[420142838,1775717444069,-2000.0,0.00021108,2]
[420142839,1775717444079,-2000.0,0.00021108,2]
[420142840,1775717444089,-760.0,0.00021159,2]
[420142841,1775717444099,-168.92805702,0.00021317,2]
[420142842,1775717444109,-1410.0,0.00021353,2]
[420142843,1775717444118,-1000.0,0.00021402,2]
[420142844,1775717444128,-2259.25806983,0.00021432,2]
[420142845,1775717444138,-2674.60743027,0.00021462,2]
[420142846,1775717444147,-1049.93206649,0.000215,2]
[420142847,1775717444157,-12991.37294518,0.000215,2]
[420142848,1775717444167,-174.53670879,0.00021534,12]
[420142849,1775717444176,-574.14776923,0.00021656,2]
[420142850,1775717444186,-2500.0,0.00021656,2]
[420142851,1775717444196,-151.0,0.000217,4]
[420142852,1775717444205,-1500.0,0.00021731,2]
[420142853,1775717444214,-693.990962,0.00021751,7]
[420142854,1775717444224,-1222.471071,0.00021842,2]
[420142855,1775717444234,-720.0,0.0002187,10]
[420142856,1775717444245,-297.0,0.000219,2]
[420142857,1775717444255,-298.0,0.000219,2]
[420142858,1775717444264,-275.0,0.000219,2]
[420142859,1775717444274,-640.0,0.000219,2]
[420142860,1775717444283,-152.0,0.000219,2]
[420142861,1775717444293,-5293.38824538,0.000219,2]
[420142862,1775717444303,-151.0,0.00021918,2]
[420142863,1775717444312,-165.965474,0.00021918,2]
[420142864,1775717444322,-151.0,0.00021918,2]
[420142865,1775717444331,-151.0,0.00021918,2]
[420142866,1775717444341,-151.0,0.00021918,2]
[420142867,1775717444351,-244.391189,0.00021918,2]
[420142868,1775717444360,-195.938491,0.00021918,2]
[420142869,1775717444370,-195.938491,0.00021918,2]
[420142870,1775717444380,-195.938491,0.00021918,2]
[420142871,1775717444390,-195.938491,0.00021918,2]
[420142872,1775717444399,-195.938491,0.00021918,2]
[420142873,1775717444408,-195.938491,0.00021918,2]
[420142874,1775717444418,-195.938491,0.00021918,2]
[420142875,1775717444427,-195.938491,0.00021918,2]
[420142876,1775717444437,-195.938491,0.00021918,2]
[420142877,1775717444446,-195.938491,0.00021918,2]
[420142878,1775717444456,-195.938491,0.00021918,2]
[420142879,1775717444465,-195.938491,0.00021918,2]
[420142880,1775717444475,-195.938491,0.00021918,2]
[420142881,1775717444484,-195.938491,0.00021918,2]
[420142882,1775717444494,-195.938491,0.00021918,2]
[420142883,1775717444503,-195.938491,0.00021918,2]
[420142884,1775717444513,-195.938491,0.00021918,2]
[420142885,1775717444682,-195.938491,0.00021918,2]
[420142886,1775717444692,-195.938491,0.00021918,2]
[420142887,1775717444702,-195.938491,0.00021918,2]
[420142888,1775717444712,-151.0,0.00021918,2]
[420142889,1775717444721,-151.0,0.00021918,2]
[420142890,1775717444730,-151.0,0.00021918,2]
[420142891,1775717444740,-151.0,0.00021918,2]
[420142892,1775717444750,-151.0,0.00021918,2]
[420142893,1775717444761,-151.0,0.00021918,2]
[420142894,1775717444771,-151.0,0.00021918,2]
[420142895,1775717444781,-151.0,0.00021918,2]
[420142896,1775717444790,-151.0,0.00021918,2]
[420142897,1775717444800,-151.0,0.00021918,2]
[420142898,1775717444811,-151.0,0.00021918,2]
[420142899,1775717444821,-151.0,0.00021918,2]
[420142900,1775717444831,-151.0,0.00021918,2]
[420142901,1775717444840,-151.0,0.00021918,2]
[420142902,1775717444850,-252.931105,0.00021918,2]
[420142903,1775717444859,-151.0,0.00021918,2]
[420142904,1775717444869,-151.0,0.00021918,2]
[420142905,1775717444878,-235.669101,0.00021918,2]
[420142906,1775717444888,-151.0,0.00021918,2]
[420142907,1775717444897,-151.0,0.00021918,2]
[420142908,1775717444907,-151.0,0.00021918,2]
[420142909,1775717444916,-151.0,0.00021918,2]
[420142910,1775717444926,-151.0,0.00021918,2]
[420142911,1775717444936,-151.0,0.00021918,2]
[420142912,1775717444945,-151.0,0.00021918,2]
[420142913,1775717444955,-151.0,0.00021918,2]
[420142914,1775717444964,-151.0,0.00021918,2]
[420142915,1775717444974,-246.336222,0.00021918,2]
[420142916,1775717444984,-151.0,0.00021918,2]
[420142917,1775717444994,-151.435,0.00021918,2]
[420142918,1775717445003,-151.0,0.00021918,2]
[420142919,1775717445013,-151.0,0.00021918,2]
[420142920,1775717445023,-151.0,0.00021918,2]
[420142921,1775717445033,-151.0,0.00021918,2]
[420142922,1775717445042,-151.389158,0.00021918,2]
[420142923,1775717445052,-151.0,0.00021918,2]
[420142924,1775717445061,-151.0,0.00021918,2]
[420142925,1775717445071,-151.0,0.00021918,2]
[420142926,1775717445081,-151.0,0.00021918,2]
[420142927,1775717445090,-151.0,0.00021918,2]
[420142928,1775717445100,-151.0,0.00021918,2]
[420142929,1775717445109,-151.0,0.00021918,2]
[420142930,1775717445119,-153.995861,0.00021918,2]
[420142931,1775717445128,-151.0,0.00021918,2]
[420142932,1775717445138,-151.0,0.00021918,2]
[420142933,1775717445147,-151.0,0.00021918,2]
[420142934,1775717445157,-186.528288,0.00021918,2]
[420142935,1775717445167,-151.0,0.00021918,2]
[420142936,1775717445176,-151.0,0.00021918,2]
[420142937,1775717445187,-155.612381,0.00021918,2]
[420142938,1775717445197,-151.0,0.00021918,2]
[420142939,1775717445206,-151.0,0.00021918,2]
[420142940,1775717445216,-247.47099,0.00021918,2]
[420142941,1775717445225,-152.40142,0.00021918,2]
[420142942,1775717445235,-151.0,0.00021918,2]
[420142943,1775717445244,-151.0,0.00021918,2]
[420142944,1775717445254,-194.0,0.00021918,2]
[420142945,1775717445264,-1364.791473,0.00021918,2]
[420142946,1775717445273,-1364.791473,0.00021918,2]
[420142947,1775717445283,-1364.791473,0.00021918,2]
[420142948,1775717445292,-1364.791473,0.00021918,2]
[420142949,1775717445302,-1364.791473,0.00021918,2]
[420142950,1775717445311,-1364.791473,0.00021918,2]
[420142951,1775717445321,-1364.791473,0.00021918,2]
[420142952,1775717445331,-1364.791473,0.00021918,2]
[420142953,1775717445340,-1364.791473,0.00021918,2]
[420142954,1775717445350,-1364.791473,0.00021918,2]
[420142955,1775717445359,-1032.082807,0.00021918,2]
[420142956,1775717445368,-1364.791473,0.00021918,2]
[420142957,1775717445378,-1032.082807,0.00021918,2]
[420142958,1775717445387,-1364.791473,0.00021918,2]
[420142959,1775717445397,-1032.082807,0.00021918,2]
[420142960,1775717445407,-1364.791473,0.00021918,2]
[420142961,1775717445417,-1032.082807,0.00021918,2]
[420142962,1775717445426,-1364.791473,0.00021918,2]